bitfinex/quotes_SOLUSD_20241117
["timestamp","ask_amount","ask_price","bid_price","bid_amount"]
[1731855470245,23.902374,233.51,233.44,10.59262031]
[1731855472266,0.09367462,233.5,233.44,10.59262031]
[1731855474060,0.09367462,233.5,233.37,20.0]
[1731855474242,0.09367462,233.5,233.42,10.59262031]
[1731855475062,10.81178493,233.5,233.36,16.1506]
[1731855475245,0.09367462,233.46,233.31,16.5819]
[1731855475446,0.09367462,233.46,233.39,10.59262031]
[1731855476139,23.902374,233.47,233.31,16.5819]
[1731855476140,0.09367462,233.42,233.35,10.59262031]
[1731855476344,0.09367462,233.42,233.25,0.1]
[1731855476345,0.09367462,233.42,233.26,16.5819]
[1731855476643,0.21916462,233.4,233.33,10.59262031]
[1731855477244,0.21916462,233.4,233.35,10.59262031]
[1731855479461,26.97432031,233.48,233.39,10.59262031]
[1731855479966,31.25732031,233.48,233.39,10.59262031]
[1731855480166,26.97432031,233.48,233.39,10.59262031]
[1731855480354,16.3817,233.48,233.41,10.59262031]
[1731855480750,16.3817,233.48,233.43,10.59262031]
[1731855481757,6.3113,233.49,233.43,10.59262031]
[1731855481963,10.59262031,233.52,233.43,10.59262031]
[1731855482155,16.3817,233.53,233.35,16.5819]
[1731855482464,16.3817,233.53,233.45,10.59262031]
[1731855483347,0.09367462,233.52,233.45,10.59262031]
[1731855483543,23.99604862,233.52,233.45,10.59262031]
[1731855484353,23.99604862,233.52,233.47,10.59262031]
[1731855484548,6.3113,233.54,233.49,10.59262031]
[1731855484770,16.3817,233.59,233.51,10.59262031]
[1731855484949,0.09367462,233.54,233.45,10.59262031]
[1731855486065,24.12153862,233.54,233.45,10.59262031]
[1731855487763,24.12153862,233.54,233.47,10.59262031]
[1731855489962,24.12153862,233.54,233.45,10.59262031]
[1731855490157,0.09367462,233.52,233.45,10.59262031]
[1731855490470,23.99604862,233.52,233.45,6.76308354]
[1731855491059,0.09367462,233.52,233.45,6.76308354]
[1731855493976,0.09367462,233.52,233.47,6.76308354]
[1731855495246,23.902374,233.53,233.47,6.76308354]
[1731855495571,24.027864,233.55,233.47,6.76308354]
[1731855495761,0.09367462,233.54,233.47,6.76308354]
[1731855497869,0.09367462,233.52,233.47,6.76308354]
[1731855498457,0.21916462,233.5,233.36,0.4]
[1731855498654,0.09367462,233.48,233.42,6.76308354]
[1731855499071,0.09367462,233.48,233.36,0.4]
[1731855499374,0.09367462,233.48,233.41,6.76308354]
[1731855500481,0.21916462,233.48,233.41,6.76308354]
[1731855500864,0.09367462,233.46,233.41,6.76308354]
[1731855501480,0.09367462,233.44,233.37,6.76308354]
[1731855504066,0.09367462,233.42,233.37,6.76308354]
[1731855504287,0.09367462,233.42,233.39,6.76308354]
[1731855504498,0.09367462,233.42,233.37,6.76308354]
[1731855504988,0.09367462,233.42,233.36,0.4]
[1731855505176,0.21916462,233.4,233.36,0.4]
[1731855505381,0.21916462,233.37,233.36,0.4]
[1731855505558,28.40653862,233.37,233.36,0.4]
[1731855505762,24.12153862,233.37,233.36,0.4]
[1731855507176,23.99604862,233.37,233.36,0.4]
[1731855507487,15.8869,233.39,233.36,0.4]
[1731855508283,0.09367462,233.38,233.36,0.4]
[1731855508487,0.21916462,233.38,233.36,0.4]
[1731855508781,23.99604862,233.38,233.36,0.4]
[1731855509283,23.99604862,233.38,233.34,6.76308354]
[1731855509986,0.21916462,233.34,233.3,15.28968659]
[1731855512283,23.776884,233.38,233.33,10.57678189]
[1731855512788,0.09367462,233.37,233.31,10.57678189]
[1731855513588,0.34465462,233.35,233.3,15.28968659]
[1731855514092,0.34465462,233.35,233.3,25.86646848]
[1731855514784,0.34465462,233.35,233.3,15.28968659]
[1731855514991,0.34465462,233.35,233.3,25.86646848]
[1731855518177,30.74838189,233.39,233.32,10.57678189]
[1731855518178,0.12549,233.38,233.32,10.57678189]
[1731855518379,0.09367462,233.37,233.32,10.57678189]
[1731855519288,0.09367462,233.38,233.32,10.57678189]
[1731855519978,0.12549,233.37,233.32,10.57678189]
[1731855522194,0.12549,233.37,233.3,25.86646848]
[1731855523471,0.09367462,233.36,233.3,25.86646848]
[1731855526195,24.12153862,233.31,233.3,15.28968659]
[1731855526576,21.7708,233.4,233.3,15.28968659]
[1731855526790,34.60464589,233.39,233.3,25.86646848]
[1731855527176,0.09367462,233.38,233.3,25.86646848]
[1731855529382,24.12153862,233.34,233.3,15.28968659]
[1731855530094,0.34465462,233.34,233.3,15.28968659]
[1731855530278,24.12153862,233.32,233.23,10.57678189]
[1731855532401,0.34465462,233.32,233.25,10.57678189]
[1731855535578,0.25098,233.35,233.29,10.57678189]
[1731855535976,4.2848,233.39,233.21,5.57523545]
[1731855535977,32.34758189,233.4,233.31,10.57678189]
[1731855536597,32.34758189,233.4,233.27,10.57678189]
[1731855536598,10.57678189,233.36,233.27,10.57678189]
[1731855536907,0.09367462,233.35,233.27,10.57678189]
[1731855537601,0.09367462,233.33,233.27,10.57678189]
[1731855538190,0.09367462,233.31,233.25,10.57678189]
[1731855538500,0.09367462,233.29,233.23,10.57678189]
[1731855539688,0.12549,233.3,233.23,10.57678189]
[1731855540797,0.12549,233.3,233.18,21.563]
[1731855540798,0.09367462,233.29,233.18,21.563]
[1731855541002,0.12549,233.26,233.19,10.57678189]
[1731855542004,0.12549,233.24,233.17,10.57678189]
[1731855542387,0.09367462,233.21,233.15,10.57678189]
[1731855542586,0.21916462,233.21,233.14,0.4628296]
[1731855542782,0.12549,233.18,233.14,0.4628296]
[1731855544405,16.6575,233.21,233.16,10.57678189]
[1731855544621,6.4925,233.26,233.18,10.57678189]
[1731855545106,6.4925,233.26,233.2,10.57678189]
[1731855548003,16.6575,233.27,233.21,10.57678189]
[1731855548311,17.06928189,233.31,233.23,10.57678189]
[1731855548500,0.09367462,233.3,233.23,10.57678189]
[1731855549411,0.21916462,233.3,233.23,10.57678189]
[1731855549612,23.99604862,233.3,233.23,10.57678189]
[1731855549987,31.56127866,233.4,233.16,10.67678189]
[1731855549988,6.4925,233.36,233.29,10.57678189]
[1731855550398,0.09367462,233.35,233.29,10.57678189]
[1731855550597,0.09367462,233.35,233.27,10.57678189]
[1731855551310,0.09367462,233.35,233.29,10.57678189]
[1731855551515,16.6575,233.38,233.31,10.57678189]
[1731855551715,6.4925,233.41,233.31,10.57678189]
[1731855551894,6.4925,233.41,233.33,10.57678189]
[1731855552793,16.6575,233.44,233.28,10.57678189]
[1731855552794,16.6575,233.44,233.37,10.57678189]
[1731855553011,17.06928189,233.48,233.37,10.57678189]
[1731855553207,10.57678189,233.46,233.37,10.57678189]
[1731855553897,0.09367462,233.45,233.37,10.57678189]
[1731855554101,0.09367462,233.4,233.32,10.57678189]
[1731855554317,0.09367462,233.4,233.29,6.5529]
[1731855554318,0.09367462,233.4,233.3,10.57678189]
[1731855554504,0.09367462,233.38,233.3,10.57678189]
[1731855554691,10.57678189,233.41,233.32,10.57678189]
[1731855554890,24.027864,233.4,233.32,10.57678189]
[1731855555111,0.09367462,233.39,233.32,10.57678189]
[1731855555918,0.09367462,233.37,233.28,30.57678189]
[1731855556317,10.67045651,233.35,233.26,10.57678189]
[1731855557198,0.09367462,233.35,233.28,10.57678189]
[1731855558224,27.20358189,233.39,233.28,10.57678189]
[1731855558511,0.09367462,233.37,233.3,10.57678189]
[1731855558710,27.20358189,233.39,233.3,10.57678189]
[1731855558912,10.57678189,233.41,233.32,10.57678189]
[1731855559215,10.57678189,233.47,233.38,10.57678189]
[1731855561012,10.57678189,233.51,233.42,10.57678189]
[1731855561192,10.57678189,233.53,233.44,10.57678189]
[1731855561394,6.5279,233.54,233.46,10.57678189]
[1731855562008,0.09367462,233.53,233.46,10.57678189]
[1731855562193,17.00497417,233.5,233.42,16.91129955]
[1731855562994,17.00497417,233.5,233.4,16.91129955]
[1731855563899,23.902374,233.47,233.38,16.91129955]
[1731855564100,23.902374,233.47,233.39,20.0]
[1731855564494,0.09367462,233.46,233.38,16.91129955]
[1731855565519,17.00497417,233.46,233.38,16.91129955]
[1731855566102,0.09367462,233.46,233.38,16.91129955]
[1731855567918,0.09367462,233.46,233.4,16.91129955]
[1731855568623,17.13046417,233.46,233.38,16.91129955]
[1731855568796,23.776884,233.45,233.38,16.91129955]
[1731855569122,23.902374,233.47,233.4,16.91129955]
[1731855569711,16.91129955,233.52,233.42,16.91129955]
[1731855570305,0.09367462,233.51,233.42,16.91129955]
[1731855571102,0.21916462,233.51,233.42,16.91129955]
[1731855571499,23.99604862,233.51,233.42,16.91129955]
[1731855572224,0.09367462,233.49,233.42,16.91129955]
[1731855572521,23.776884,233.5,233.42,16.91129955]
[1731855572827,0.12549,233.5,233.42,16.91129955]
[1731855575017,23.43919955,233.54,233.44,16.91129955]
[1731855575205,23.43919955,233.54,233.46,16.91129955]
[1731855575206,6.5279,233.54,233.46,16.91129955]
[1731855576002,0.09367462,233.53,233.46,16.91129955]
[1731855576602,23.87055862,233.53,233.46,16.91129955]
[1731855577015,23.87055862,233.51,233.43,20.0]
[1731855577232,0.12549,233.5,233.43,20.0]
[1731855577720,0.12549,233.5,233.4,16.91129955]
[1731855577721,0.09367462,233.47,233.4,16.91129955]
[1731855577902,23.99604862,233.47,233.38,16.91129955]
[1731855578109,0.12549,233.46,233.38,16.91129955]
[1731855579208,10.8098,233.54,233.42,16.91129955]
[1731855579513,24.027864,233.51,233.42,16.91129955]
[1731855579696,0.09367462,233.5,233.42,16.91129955]
[1731855580518,17.13046417,233.48,233.41,20.0]
[1731855580728,17.13046417,233.46,233.38,16.91129955]
[1731855580896,23.776884,233.45,233.38,16.91129955]
[1731855582321,23.776884,233.45,233.37,10.57338334]
[1731855584927,0.21916462,233.39,233.31,10.57338334]
[1731855585229,23.99604862,233.39,233.31,10.57338334]
[1731855585721,0.21916462,233.37,233.29,10.57338334]
[1731855585927,0.21916462,233.37,233.25,15.3643]
[1731855585928,23.99604862,233.35,233.27,10.57338334]
[1731855586914,23.99604862,233.35,233.28,20.0]
[1731855587823,23.99604862,233.35,233.27,10.57338334]
[1731855588128,23.99604862,233.35,233.28,20.0]
[1731855588635,23.99604862,233.35,233.29,10.57338334]
[1731855588636,0.21916462,233.35,233.29,10.57338334]
[1731855589922,32.85118334,233.34,233.27,10.57338334]
[1731855590520,22.2778,233.34,233.27,10.57338334]
[1731855591523,10.57338334,233.4,233.31,10.57338334]
[1731855592728,0.21916462,233.39,233.31,10.57338334]
[1731855593024,23.99604862,233.39,233.31,10.57338334]
[1731855593202,23.99604862,233.37,233.29,10.57338334]
[1731855597524,23.99604862,233.37,233.21,0.1]
[1731855597525,22.2778,233.41,233.34,10.57338334]
[1731855597840,16.92778334,233.46,233.38,10.57338334]
[1731855598013,6.3544,233.46,233.38,10.57338334]
[1731855598332,0.09367462,233.45,233.38,10.57338334]
[1731855598508,6.3544,233.46,233.38,10.57338334]
[1731855598918,16.92778334,233.46,233.38,10.57338334]
[1731855599427,0.09367462,233.45,233.38,10.57338334]
[1731855600038,23.902374,233.45,233.38,10.57338334]
[1731855600717,6.3544,233.52,233.38,10.57338334]
[1731855600907,10.57338334,233.48,233.4,10.57338334]
[1731855601531,0.09367462,233.47,233.38,10.57338334]
[1731855601830,10.57338334,233.48,233.38,10.57338334]
[1731855601831,0.09367462,233.45,233.38,10.57338334]
[1731855602024,23.87055862,233.45,233.38,10.57338334]
[1731855602238,23.87055862,233.43,233.35,20.0]
[1731855602410,23.87055862,233.43,233.36,10.57338334]
[1731855603721,0.09367462,233.41,233.36,10.57338334]
[1731855603920,0.09367462,233.41,233.34,10.57338334]
[1731855604521,23.87055862,233.41,233.32,10.57338334]
[1731855604718,39.256584,233.43,233.3,10.57338334]
[1731855604719,23.87055862,233.37,233.3,10.57338334]
[1731855605136,0.12549,233.36,233.3,10.57338334]
[1731855606206,0.12549,233.41,233.23,27.20514504]
[1731855606415,0.12549,233.36,233.28,10.57338334]
[1731855606609,0.09367462,233.35,233.28,10.57338334]
[1731855607821,10.57338334,233.4,233.32,10.57338334]
[1731855608018,10.57338334,233.42,233.34,10.57338334]
[1731855609024,0.09367462,233.37,233.3,10.57338334]
[1731855609215,0.21916462,233.35,233.28,10.57338334]
[1731855609729,0.21916462,233.35,233.3,10.57338334]
[1731855611015,0.21916462,233.35,233.28,10.57338334]
[1731855611317,23.99604862,233.35,233.28,10.57338334]
[1731855612527,0.21916462,233.35,233.28,10.57338334]
[1731855612836,10.57338334,233.42,233.32,10.57338334]
[1731855613026,10.57338334,233.42,233.34,10.57338334]
[1731855613921,10.57338334,233.44,233.34,10.57338334]
[1731855614120,10.57338334,233.44,233.36,10.57338334]
[1731855615539,23.99604862,233.42,233.34,10.57338334]
[1731855616038,0.09367462,233.4,233.34,10.57338334]
[1731855616223,0.09367462,233.4,233.15,13.33105596]
[1731855616224,10.57338334,233.38,233.3,10.57338334]
[1731855616456,24.12153862,233.37,233.28,10.57338334]
[1731855616621,23.99604862,233.35,233.28,10.57338334]
[1731855617528,10.57338334,233.38,233.3,10.57338334]
[1731855618329,24.12153862,233.4,233.32,10.57338334]
[1731855619123,21.8341,233.43,233.35,10.57338334]
[1731855620925,10.57338334,233.46,233.37,10.57338334]
[1731855621538,10.57338334,233.48,233.39,10.57338334]
[1731855621729,22.7273,233.49,233.41,10.57338334]
[1731855622118,10.57338334,233.5,233.42,20.0]
[1731855623239,10.57338334,233.52,233.43,10.57338334]
[1731855623965,10.57338334,233.54,233.45,10.57338334]
[1731855625635,0.09367462,233.53,233.45,10.57338334]
[1731855625854,10.57338334,233.52,233.44,20.0]
[1731855626226,10.57338334,233.52,233.43,10.57338334]
[1731855626744,10.57338334,233.52,233.44,20.0]
[1731855628554,0.21916462,233.53,233.44,20.0]
[1731855629045,0.21916462,233.53,233.45,10.57338334]
[1731855629243,10.57338334,233.54,233.45,10.57338334]
[1731855630339,10.57338334,233.54,233.46,20.0]
[1731855630537,10.57338334,233.56,233.48,20.0]
[1731855632334,10.988453,233.61,233.54,10.57338334]
[1731855632335,6.707853,233.61,233.54,10.57338334]
[1731855632536,10.57338334,233.63,233.56,10.57338334]
[1731855632862,10.57338334,233.63,233.5,10.57338334]
[1731855632863,0.09367462,233.58,233.5,10.57338334]
[1731855633148,10.57338334,233.57,233.5,10.57338334]
[1731855633354,6.707853,233.63,233.41,0.1]
[1731855633355,10.57338334,233.59,233.52,10.57338334]
[1731855633737,24.12153862,233.58,233.5,10.57338334]
[1731855634136,23.99604862,233.58,233.5,10.57338334]
[1731855634538,23.99604862,233.58,233.52,10.57338334]
[1731855635549,10.57338334,233.61,233.52,10.57338334]
[1731855635848,10.66705796,233.59,233.44,20.0]
[1731855636036,23.902374,233.58,233.5,10.57338334]
[1731855636856,10.57338334,233.59,233.52,10.57338334]
[1731855641135,10.57338334,233.57,233.47,10.57338334]
[1731855641339,10.57338334,233.55,233.47,10.57338334]
[1731855642555,10.57338334,233.59,233.49,10.57338334]
[1731855643651,10.57338334,233.59,233.5,20.0]
[1731855644957,10.57338334,233.61,233.51,10.57338334]
[1731855645173,10.57338334,233.61,233.53,10.57338334]
[1731855648152,10.57338334,233.59,233.49,10.57338334]
[1731855648462,10.57338334,233.55,233.47,10.57338334]
[1731855648758,10.57338334,233.53,233.45,10.57338334]
[1731855648936,0.09367462,233.56,233.45,10.57338334]
[1731855649135,10.57338334,233.53,233.45,10.57338334]
[1731855650368,10.57338334,233.53,233.46,20.0]
[1731855651249,10.57338334,233.53,233.44,20.0]
[1731855652142,10.57338334,233.45,233.37,15.2574]
[1731855652565,10.57338334,233.43,233.37,15.2574]
[1731855652744,10.57338334,233.43,233.34,10.57338334]
[1731855653568,10.57338334,233.47,233.4,10.57338334]
[1731855653867,32.846753,233.56,233.41,20.0]
[1731855653868,10.57338334,233.49,233.41,20.0]
[1731855654557,10.57338334,233.53,233.44,10.57338334]
[1731855655561,10.57338334,233.51,233.43,20.0]
[1731855657445,10.57338334,233.49,233.41,20.0]
[1731855658164,10.57338334,233.49,233.43,20.0]
[1731855658341,10.57338334,233.51,233.43,20.0]
[1731855662858,10.57338334,233.53,233.43,20.0]
[1731855663058,34.35026734,233.55,233.46,10.57338334]
[1731855663372,10.57338334,233.57,233.48,10.57338334]
[1731855666449,10.57338334,233.59,233.5,10.57338334]
[1731855666669,10.57338334,233.61,233.52,10.57338334]
[1731855667869,10.57338334,233.58,233.51,20.0]
[1731855668063,10.57338334,233.58,233.5,15.6277]
[1731855668675,10.57338334,233.58,233.5,26.20108334]
[1731855668853,10.57338334,233.6,233.52,10.57338334]
[1731855670078,10.57338334,233.6,233.51,20.0]
[1731855671458,17.28123634,233.6,233.51,20.0]
[1731855671974,10.57338334,233.6,233.51,20.0]
[1731855672561,10.57338334,233.58,233.5,10.57338334]
[1731855674359,10.57338334,233.58,233.45,20.0]
[1731855674573,10.57338334,233.58,233.49,10.57338334]
[1731855674772,10.57338334,233.58,233.5,20.0]
[1731855675772,6.707853,233.59,233.54,10.57338334]
[1731855675976,6.707853,233.62,233.56,10.57338334]
[1731855676871,0.07835584,233.59,233.58,10.57338334]
[1731855677074,0.07835584,233.59,233.58,30.57338334]
[1731855679272,0.07835584,233.59,233.58,31.42936557]
[1731855679671,0.07835584,233.59,233.58,30.57338334]
[1731855680779,6.707853,233.73,233.64,179.38791866]
[1731855680985,6.707853,233.77,233.64,47.31935668]
[1731855681277,10.57338334,233.82,233.67,20.25098]
[1731855681455,10.57338334,233.82,233.73,10.57338334]
[1731855682379,10.57338334,233.84,233.75,10.57338334]
[1731855682582,17.28123634,233.88,233.78,10.57338334]
[1731855682762,38.93243634,233.9,233.81,10.57338334]
[1731855683385,32.22458334,233.9,233.81,10.57338334]
[1731855683591,10.57338334,233.88,233.79,10.57338334]
[1731855683775,10.57338334,233.84,233.77,10.57338334]
[1731855684789,23.776884,233.83,233.75,30.57338334]
[1731855686380,10.57338334,233.84,233.75,30.57338334]
[1731855687691,10.57338334,233.78,233.68,15.4275]
[1731855687984,10.57338334,233.78,233.69,10.57338334]
[1731855688785,10.57338334,233.76,233.68,15.4275]
[1731855688988,10.57338334,233.7,233.59,15.4275]
[1731855689191,10.57338334,233.68,233.59,26.00088334]
[1731855689395,10.57338334,233.7,233.61,10.57338334]
[1731855689678,23.902374,233.77,233.69,10.57338334]
[1731855689884,23.776884,233.77,233.69,10.57338334]
[1731855690088,10.57338334,233.78,233.69,10.57338334]
[1731855690568,10.57338334,233.78,233.71,10.57338334]
[1731855691070,23.776884,233.78,233.71,10.57338334]
[1731855691481,10.57338334,233.77,233.69,10.57338334]
[1731855692706,23.776884,233.78,233.69,10.57338334]
[1731855692895,23.776884,233.78,233.71,10.57338334]
[1731855693694,23.776884,233.78,233.69,10.57338334]
[1731855693893,23.776884,233.78,233.52,10.57338334]
[1731855693894,10.79254796,233.75,233.67,10.57338334]
[1731855694097,10.69887334,233.77,233.59,15.5275]
[1731855694293,23.776884,233.76,233.69,10.57338334]
[1731855694983,23.776884,233.76,233.67,10.57338334]
[1731855696274,0.21916462,233.75,233.67,10.57338334]
[1731855696586,23.776884,233.76,233.67,10.57338334]
[1731855697096,0.08154636,233.68,233.67,10.57338334]
[1731855697873,0.08154636,233.68,233.59,15.4275]
[1731855698077,0.08154636,233.68,233.61,10.57338334]
[1731855698492,10.3383614,233.69,233.61,10.57338334]
[1731855698895,10.57338334,233.67,233.54,15.4127]
[1731855699097,10.57338334,233.69,233.62,10.57338334]
[1731855699278,23.85857003,233.7,233.62,10.57338334]
[1731855700309,0.08168603,233.7,233.64,10.57338334]
[1731855700805,0.08168603,233.7,233.68,10.57338334]
[1731855700981,0.08168603,233.7,233.69,20.0]
[1731855701390,0.08168603,233.7,233.69,30.57338334]
[1731855702195,0.08168603,233.7,233.69,10.57338334]
[1731855702899,0.08168603,233.7,233.67,10.57338334]
[1731855703201,0.08168603,233.7,233.65,25.98608334]
[1731855703387,0.08168603,233.7,233.63,10.57338334]
[1731855703579,23.85857003,233.7,233.63,10.57338334]
[1731855706287,0.08168603,233.7,233.65,10.57338334]
[1731855706521,0.08168603,233.7,233.59,15.4127]
[1731855706522,0.08168603,233.7,233.67,10.57338334]
[1731855708005,0.08168603,233.7,233.69,10.57338334]
[1731855708704,0.08168603,233.7,233.69,30.57338334]
[1731855709982,0.09267306,233.74,233.73,159.47531146]
[1731855710177,0.09267306,233.74,233.73,190.0486948]
[1731855710482,0.09267306,233.74,233.73,170.0486948]
[1731855711087,0.09267306,233.74,233.71,10.57338334]
[1731855712107,0.09267306,233.74,233.73,10.57338334]
[1731855716107,0.09267306,233.74,233.61,3.41029299]
[1731855716108,0.12549,233.73,233.65,10.57338334]
[1731855716285,6.5608,233.75,233.71,10.57338334]
[1731855716495,0.12549,233.77,233.71,10.57338334]
[1731855716900,0.08675799,233.72,233.71,10.57338334]
[1731855718416,0.08675799,233.72,233.69,10.57338334]
[1731855719518,0.08675799,233.72,233.71,10.57338334]
[1731855723192,0.08675799,233.72,233.71,46.62528334]
[1731855723921,0.08675799,233.72,233.71,26.62528334]
[1731855725021,0.08675799,233.72,233.71,16.0519]
[1731855725189,0.08675799,233.72,233.65,16.0519]
[1731855725510,0.08675799,233.72,233.67,10.57338334]
[1731855725905,0.08675799,233.72,233.65,10.57338334]
[1731855726109,23.776884,233.71,233.59,15.5554]
[1731855726316,0.08675799,233.72,233.64,10.57338334]
[1731855728112,0.18043261,233.72,233.59,15.5554]
[1731855728315,23.99604862,233.68,233.6,10.57338334]
[1731855728703,23.99604862,233.68,233.58,10.57338334]
[1731855729303,10.57338334,233.65,233.56,10.57338334]
[1731855731101,23.99604862,233.66,233.58,10.57338334]
[1731855732823,10.57338334,233.65,233.56,10.57338334]
[1731855733015,6.4048,233.64,233.56,10.57338334]
[1731855733199,6.4048,233.64,233.54,10.57338334]
[1731855733801,6.4048,233.68,233.6,10.57338334]
[1731855735918,23.99604862,233.67,233.6,10.57338334]
[1731855736131,0.12549,233.66,233.58,10.57338334]
[1731855738324,0.09367462,233.6,233.47,13.50341945]
[1731855738528,23.99604862,233.58,233.5,10.57338334]
[1731855739209,23.99604862,233.58,233.47,13.50341945]
[1731855739210,0.09367462,233.54,233.47,13.50341945]
[1731855739408,10.57338334,233.51,233.42,10.57338334]
[1731855739725,10.07338334,233.51,233.42,10.57338334]
[1731855739924,23.99604862,233.5,233.42,10.57338334]
[1731855740105,23.99604862,233.48,233.4,10.57338334]
[1731855740306,0.21916462,233.46,233.38,10.57338334]
[1731855740602,23.776884,233.44,233.36,10.57338334]
[1731855741314,10.66705796,233.43,233.29,6.0876]
[1731855741511,0.09367462,233.41,233.33,10.57338334]
[1731855741720,0.21916462,233.39,233.31,10.57338334]
[1731855742029,0.12549,233.38,233.31,10.57338334]
[1731855742237,0.09367462,233.37,233.24,6.0876]
[1731855742525,0.21916462,233.33,233.25,10.57338334]
[1731855742741,10.79254796,233.33,233.25,10.57338334]
[1731855742913,10.79254796,233.33,233.23,10.57338334]
[1731855742914,0.21916462,233.31,233.23,10.57338334]
[1731855743928,0.21916462,233.31,233.25,10.57338334]
[1731855744306,0.21916462,233.31,233.25,16.9369869]
[1731855745821,0.21916462,233.31,233.23,16.9369869]
[1731855746129,23.776884,233.3,233.23,16.9369869]
[1731855746832,24.12153862,233.24,233.14,0.4628296]
[1731855747036,16.9369869,233.25,233.14,0.4628296]
[1731855747037,0.09367462,233.2,233.14,17.3998165]
[1731855747332,23.99604862,233.16,233.14,0.4628296]
[1731855747538,41.05852552,233.15,233.14,0.4628296]
[1731855747712,23.902374,233.16,233.14,0.4628296]
[1731855747915,6.25,233.17,233.14,0.4628296]
[1731855748209,23.902374,233.19,233.14,0.4628296]
[1731855748531,0.12549,233.19,233.14,0.4628296]
[1731855748717,0.12549,233.22,233.17,16.9369869]
[1731855749048,23.902374,233.22,233.17,16.9369869]
[1731855749618,0.12549,233.2,233.15,16.9369869]
[1731855749827,6.25,233.23,233.15,16.9369869]
[1731855750012,6.25,233.28,233.14,0.4628296]
[1731855750332,6.25,233.28,233.21,16.9369869]
[1731855751138,6.25,233.28,233.14,0.4628296]
[1731855751139,6.25,233.28,233.23,16.9369869]
[1731855751924,6.25,233.28,233.25,16.9369869]
[1731855753319,0.09367462,233.32,233.25,16.9369869]
[1731855753822,23.99604862,233.32,233.25,16.9369869]
[1731855755241,0.09367462,233.28,233.21,16.9369869]
[1731855755452,0.12549,233.27,233.19,16.9369869]
[1731855755661,0.09367462,233.24,233.15,16.9369869]
[1731855755944,23.99604862,233.18,233.14,0.4628296]
[1731855756152,0.34465462,233.15,233.14,0.4628296]
[1731855756327,0.21916462,233.15,233.14,0.4628296]
[1731855756530,0.34465462,233.15,233.14,0.4628296]
[1731855758051,0.35098,233.09,232.85,21.9803]
[1731855758252,4.2892,233.14,232.91,16.9369869]
[1731855758253,23.99604862,233.0,232.91,16.9369869]
[1731855760163,0.21916462,232.98,232.91,16.9369869]
[1731855761029,0.21916462,232.96,232.91,16.9369869]
[1731855761437,6.5014,233.02,232.95,16.9369869]
[1731855761743,0.09367462,233.01,232.95,16.9369869]
[1731855762052,0.09367462,233.01,232.93,16.9369869]
[1731855762735,23.99604862,232.99,232.89,16.9369869]
[1731855762924,23.99604862,232.99,232.8,16.9369869]
[1731855762925,23.99604862,232.99,232.91,16.9369869]
[1731855763125,23.902374,232.99,232.93,16.9369869]
[1731855763330,0.12549,233.0,232.93,16.9369869]
[1731855763546,0.12549,233.0,232.95,16.9369869]
[1731855764859,0.09367462,232.99,232.93,16.9369869]
[1731855765748,0.09367462,232.97,232.91,16.9369869]
[1731855765944,0.09367462,232.95,232.91,16.9369869]
[1731855766446,0.09367462,232.96,232.91,16.9369869]
[1731855766653,24.12153862,232.94,232.77,21.8803]
[1731855766950,24.12153862,232.94,232.66,9.69776297]
[1731855766951,41.05852552,232.91,232.7,21.8803]
[1731855767262,24.12153862,232.86,232.68,6.67079797]
[1731855767449,24.027864,232.86,232.79,16.9369869]
[1731855768143,0.21916462,232.85,232.79,16.9369869]
[1731855768336,23.4383869,232.87,232.77,16.9369869]
[1731855768537,23.4383869,232.87,232.68,16.9369869]
[1731855768538,23.902374,232.86,232.81,16.9369869]
[1731855768945,24.027864,232.9,232.85,16.9369869]
[1731855769251,0.25098,232.9,232.85,16.9369869]
[1731855769556,0.09367462,232.89,232.85,16.9369869]
[1731855769731,0.09367462,232.89,232.71,0.1]
[1731855769732,6.5014,232.93,232.87,16.9369869]
[1731855769940,16.9369869,232.97,232.89,16.9369869]
[1731855770255,0.09367462,232.96,232.89,16.9369869]
[1731855770945,0.09367462,232.94,232.89,16.9369869]
[1731855771141,16.9369869,232.97,232.89,16.9369869]
[1731855771661,0.09367462,232.97,232.91,16.9369869]
[1731855772349,0.09367462,232.97,232.8,16.9369869]
[1731855772350,6.5014,233.0,232.93,16.9369869]
[1731855772659,32.4535869,233.03,232.8,16.9369869]
[1731855772660,21.2280869,233.05,232.95,16.9369869]
[1731855772963,6.5014,233.07,232.83,0.2]
[1731855772964,21.2275869,233.07,232.98,16.9369869]
[1731855773557,6.37033131,233.07,233.06,16.9369869]
[1731855773742,10.7911,233.12,233.06,16.9369869]
[1731855774083,10.7911,233.12,232.92,16.9369869]
[1731855774084,0.09367462,233.11,233.04,16.9369869]
[1731855774259,10.7911,233.12,233.04,16.9369869]
[1731855775260,27.7280869,233.12,233.04,16.9369869]
[1731855775442,0.21916462,233.1,233.04,16.9369869]